fUSD/lending_fUSD_20240407
["ID","MTS","AMOUNT","RATE_DAILY","PERIOD"]
[321731432,1712478639965,-166.71357036,0.000219,2]
[321731433,1712478639974,-166.71357036,0.000219,2]
[321731434,1712478639984,-166.71357036,0.000219,2]
[321731435,1712478639993,-166.71357036,0.000219,2]
[321731436,1712478640003,-166.71357036,0.000219,2]
[321731437,1712478640013,-166.71357036,0.000219,2]
[321731438,1712478640022,-166.71357036,0.000219,2]
[321731439,1712478640032,-166.71357036,0.000219,2]
[321731440,1712478640041,-166.71357036,0.000219,2]
[321731441,1712478640050,-166.71357036,0.000219,2]
[321731442,1712478640060,-166.71357036,0.000219,2]
[321731444,1712478640070,-166.71357036,0.000219,2]
[321731446,1712478640079,-166.71357036,0.000219,2]
[321731447,1712478640088,-166.71357036,0.000219,2]
[321731448,1712478640097,-166.71357036,0.000219,2]
[321731449,1712478640106,-166.71357036,0.000219,2]
[321731450,1712478640115,-166.71357036,0.000219,2]
[321731451,1712478640124,-166.71357036,0.000219,2]
[321731452,1712478640133,-166.71357036,0.000219,2]
[321731453,1712478640142,-166.71357036,0.000219,2]
[321731454,1712478640151,-166.71357036,0.000219,2]
[321731455,1712478640160,-166.71357036,0.000219,2]
[321731456,1712478640169,-166.71357036,0.000219,2]
[321731457,1712478640178,-166.71357036,0.000219,2]
[321731458,1712478640187,-166.71357036,0.000219,2]
[321731459,1712478640196,-166.71357036,0.000219,2]
[321731460,1712478640205,-166.71357036,0.000219,2]
[321731461,1712478640215,-166.71357036,0.000219,2]
[321731462,1712478640225,-166.71357036,0.000219,2]
[321731463,1712478640234,-166.71357036,0.000219,2]
[321731464,1712478640244,-166.71357036,0.000219,2]
[321731465,1712478640254,-166.71357036,0.000219,2]
[321731466,1712478640265,-166.71357036,0.000219,2]
[321731467,1712478640274,-166.71357036,0.000219,2]
[321731468,1712478640284,-166.71357036,0.000219,2]
[321731469,1712478640293,-166.71357036,0.000219,2]
[321731470,1712478640302,-166.71357036,0.000219,2]
[321731471,1712478640311,-166.71357036,0.000219,2]
[321731472,1712478640320,-166.71357036,0.000219,2]
[321731473,1712478640329,-166.71357036,0.000219,2]
[321731474,1712478640337,-166.71357036,0.000219,2]
[321731475,1712478640347,-166.71357036,0.000219,2]
[321731476,1712478640356,-166.71357036,0.000219,2]
[321731477,1712478640365,-166.71357036,0.000219,2]
[321731478,1712478640374,-166.71357036,0.000219,2]
[321731479,1712478640383,-166.71357036,0.000219,2]
[321731480,1712478640392,-166.71357036,0.000219,2]
[321731481,1712478640401,-166.71357036,0.000219,2]
[321731482,1712478640410,-166.71357036,0.000219,2]
[321731483,1712478640420,-166.71357036,0.000219,2]
[321731484,1712478640429,-166.71357036,0.000219,2]
[321731485,1712478640440,-166.71357036,0.000219,2]
[321731486,1712478640449,-166.71357036,0.000219,2]
[321731487,1712478640458,-166.71357036,0.000219,2]
[321731488,1712478640470,-166.71357036,0.000219,2]
[321731489,1712478640479,-166.71357036,0.000219,2]
[321731490,1712478640488,-166.71357036,0.000219,2]
[321731491,1712478640497,-166.71357036,0.000219,2]
[321731492,1712478640507,-166.71357036,0.000219,2]
[321731493,1712478640516,-166.71357036,0.000219,2]
[321731494,1712478640525,-166.71357036,0.000219,2]
[321731495,1712478640536,-166.71357036,0.000219,2]
[321731496,1712478640545,-91458.1430414,0.00021903,2]
[321731497,1712478640554,-250.0,0.00021918,2]
[321731498,1712478640563,-170483.16252832,0.00021992,2]
[321731499,1712478640572,-206.38747873,0.00021997,2]
[321731500,1712478640581,-970.02342039,0.00021997,2]
[321731501,1712478640591,-604.50605254,0.00021998,2]
[321731502,1712478640601,-203.32322521,0.00021998,2]
[321731503,1712478640610,-430.10766442,0.00021998,2]
[321731504,1712478640620,-83344.74153807,0.00021999,2]
[321731505,1712478640635,-1350.427572,0.00021999,2]
[321731506,1712478640660,-450.30999976,0.00021999,2]
[321731507,1712478640686,-506.56674046,0.00021999,2]
[321731508,1712478640707,-302.0,0.00021999,2]
[321731530,1712478642668,-506.0,0.00021575,2]
[321731531,1712478642678,-507.60756208,0.00021899,2]
[321731532,1712478642687,-1212.27488659,0.00021989,2]
[321731533,1712478642697,-1256.53402123,0.00021999,2]
[321731534,1712478642709,-8710.36985001,0.00021999,2]
[321731535,1712478642766,-2052.95817881,0.00021999,2]
[321731536,1712478642894,-139.86972891,0.00021999,2]
[321731537,1712478642903,-1325.2831711,0.00021999,2]
[321731557,1712478646173,-506.0,0.00021575,2]
[321731558,1712478646183,-328.58475385,0.00021899,2]
[321731559,1712478646193,-5074.52148756,0.00021998,2]
[321731560,1712478646202,-10542.1617418,0.00021999,2]
[321731561,1712478646212,-51017.85690561,0.00021999,2]
[321731580,1712478661592,1000.0,0.0003,30]
[321731587,1712478749481,209.32,0.00019442,2]
[321731588,1712478765406,401.02,0.0003,90]
[321731589,1712479221013,198.85,0.00018901,2]
[321731590,1712479323107,-500.0,0.00020783,2]
[321731591,1712479323131,-417.29,0.00020784,2]
[321731592,1712479323155,-150.0,0.00020842,2]
[321731593,1712479323174,-362.27924693,0.00020843,2]
[321731594,1712479323193,-10544.41495387,0.00020843,2]
[321731595,1712479323215,-1265.66,0.00020846,2]
[321731596,1712479323236,-500.0,0.00020891,2]
[321731597,1712479323258,-200.0,0.00020899,2]
[321731598,1712479323279,-253.59,0.00020929,2]
[321731599,1712479323303,-1750.0,0.00021,3]
[321731600,1712479639164,-1000.0,0.00020943,2]
[321731601,1712479639183,-1014.04,0.00021003,2]
[321731602,1712479639204,-198.85,0.00021165,2]
[321731603,1712479639225,-164.58,0.00021175,2]
[321731604,1712479639249,-499.99,0.00021215,2]
[321731605,1712479639269,-156.59183347,0.00021339,2]
[321731606,1712479639288,-143.61700868,0.000214,2]
[321731607,1712479782548,178.96,0.00019059,2]
[321731616,1712479831643,-500.0,0.00020583,2]
[321731617,1712479831652,-187.78056435,0.00020584,2]
[321731618,1712479831662,-156.59183347,0.0002094,2]
[321731619,1712479831670,-51.6701566,0.0002104,2]
[321731620,1712479831698,-365.6198434,0.0002104,2]
[321731621,1712479831708,-843.44,0.00021066,2]
[321731622,1712479831717,-156.59183347,0.00021259,2]
[321731623,1712479831729,-178.96,0.00021323,2]
[321731624,1712479831737,-173.3267104,0.00021379,2]
[321731625,1712479831747,-150.0,0.00021399,2]
[321731626,1712479831757,-2756.39,0.000214,2]
[321731627,1712479831767,-160.0,0.000214,2]
[321731628,1712479831776,-208.0,0.000214,2]
[321731629,1712479831785,-151.0,0.000214,2]
[321731630,1712479831795,-152.275,0.000214,2]
[321731631,1712479831807,-154.606,0.000214,2]
[321731632,1712479831817,-153.308,0.000214,2]
[321731633,1712479831827,-554.83054963,0.000214,2]
[321731634,1712479831841,-255.97559429,0.000214,2]
[321731635,1712479831852,-1071.35837695,0.000214,2]
[321731636,1712479831874,-452.83547913,0.000214,2]
[321731637,1712479831883,-856.0,0.00021575,2]
[321731638,1712479831893,-156.59183347,0.00021579,2]
[321731639,1712479831902,-218.91615973,0.00021682,2]
[321731640,1712479831911,-4335.85409298,0.00021897,2]
[321731641,1712479831920,-930.10243469,0.00021898,2]
[321731642,1712479831932,-1200.0,0.00021898,2]
[321731643,1712479831943,-5369.89756531,0.00021898,2]
[321731644,1712479831953,-1123.78924116,0.00021898,2]
[321731645,1712479831962,-1452.59299718,0.00021898,2]
[321731646,1712479831971,-322.59187076,0.00021898,2]
[321731647,1712479831980,-156.59183347,0.00021898,2]
[321731648,1712479831989,-35344.1974,0.00021899,2]
[321731649,1712479831998,-4862.34893342,0.000219,2]
[321731650,1712479832008,-151.57950235,0.000219,2]
[321731651,1712479832017,-331.19502466,0.000219,2]
[321731652,1712479832027,-250.0,0.00021918,2]
[321731653,1712479832036,-1500.0,0.00021918,2]
[321731654,1712479832045,-16196.81768124,0.00021995,2]
[321731655,1712479832056,-333.00794755,0.00021995,2]
[321731656,1712479832067,-253.083484,0.00021995,2]
[321731657,1712479832095,-1544.8080731,0.00021995,2]
[321731658,1712479832106,-148490.37294721,0.00021995,2]
[321731659,1712479832118,-19979.21529075,0.00021995,2]
[321731660,1712479832129,-33645.34226272,0.00021995,2]
[321731661,1712479832140,-944.1985,0.00021995,2]
[321731662,1712479832152,-25198.7927626,0.00021995,2]
[321731663,1712479832176,-314.80022432,0.00021995,2]
[321731664,1712479832187,-1672.77186781,0.00021995,2]
[321731665,1712479832198,-498.85754035,0.00021995,2]
[321731666,1712479832210,-16063.58494237,0.00021995,2]
[321731667,1712479832221,-3534.808344,0.00021995,2]
[321731668,1712479832246,-448.74875887,0.00021995,2]
[321731669,1712479832258,-279.69657276,0.00021995,2]
[321731670,1712479832270,-1098.8377003,0.00021995,2]
[321731671,1712479832282,-3571.84322377,0.00021995,2]
[321731695,1712479837674,-590.0758893,0.000219,2]
[321731696,1712479837684,-407.03841009,0.00021995,2]
[321731697,1712479837730,-1348.624,0.00021995,2]
[321731698,1712479837791,-6831.87922527,0.00021995,2]
[321731718,1712479839750,-617.793995,0.00021995,2]
[321731719,1712479840085,-29467.81109556,0.00021995,2]
[321731730,1712479842739,-696.63048,0.00021995,2]
[321731731,1712479842847,-1718.23909618,0.00021995,2]
[321731732,1712479843008,-1652.88200596,0.00021995,2]
[321731733,1712479843023,-656.35,0.00021995,2]
[321731734,1712479843038,-878.1499995,0.00021995,2]
[321731735,1712479843061,-734.49456931,0.00021995,2]
[321731743,1712479845639,-719.84129831,0.00021995,2]
[321731744,1712479845857,-5340.23335922,0.00021995,2]
[321731745,1712479845997,-10358.74234731,0.00021995,2]
[321731746,1712479846011,-371.88291753,0.00021995,2]
[321731747,1712479846096,-300975.16062037,0.00021995,2]
[321731748,1712479846109,-4439.01313039,0.00021995,2]
[321731749,1712479846122,-380.02079815,0.00021995,2]
[321731750,1712479846133,-370.72646976,0.00021995,2]
[321731751,1712479846146,-1057.50232524,0.00021995,2]
[321731752,1712479846158,-1252.62537229,0.00021995,2]
[321731753,1712479846170,-1244.65583929,0.00021996,2]
[321731754,1712479846182,-294.93684472,0.00021997,2]
[321731755,1712479846193,-439.78797869,0.00021997,2]
[321731756,1712479846202,-927.19939296,0.00021997,2]
[321731757,1712479846212,-218.11981489,0.00021997,2]
[321731758,1712479846221,-298.66273344,0.00021997,2]
[321731759,1712479846230,-205.41029166,0.00021997,2]
[321731760,1712479846240,-193.86325432,0.00021997,2]
[321731761,1712479846249,-168.06945096,0.00021997,2]
[321731762,1712479846258,-1210.30084464,0.00021997,2]
[321731763,1712479846267,-224.1923943,0.00021997,2]
[321731764,1712479846576,-835.0,0.00021997,2]
[321731765,1712479846597,-211.74166061,0.00021997,2]
[321731766,1712479846607,-970.02342039,0.00021998,2]
[321731767,1712479846616,-1154.29340506,0.00021998,2]
[321731768,1712479846625,-282395.60140391,0.00021999,2]
[321731769,1712479846642,-2483.06704553,0.00021999,2]
[321731770,1712479846654,-200470.0,0.00021999,2]
[321731771,1712479903915,1810.82040602,0.00016499,2]
[321731772,1712480033381,-155.0,0.00020638,2]
[321731773,1712480033403,-155.0,0.00020639,2]
[321731774,1712480033424,-486.03849486,0.0002064,2]
[321731775,1712480033445,-263.09163061,0.00020641,2]
[321731776,1712480033465,-682.38593014,0.00020642,2]
[321731777,1712480033486,-258.48394439,0.00020645,2]
[321731778,1712480033931,-2000.0,0.00020645,2]
[321731779,1712480034254,-2000.0,0.00020645,2]
[321731780,1712480034900,-2000.0,0.00020645,2]
[321731781,1712480035802,-2000.0,0.00020645,2]
[321731782,1712480036224,-2000.0,0.00020645,2]
[321731783,1712480036577,-2000.0,0.00020645,2]
[321731784,1712480036994,-2000.0,0.00020645,2]
[321731785,1712480037351,-1014.3867228,0.00020645,2]
[321731786,1712480037372,-985.6132772,0.0002084,2]
[321731787,1712480038041,-2000.0,0.0002084,2]
[321731788,1712480038623,-2000.0,0.0002084,2]
[321731789,1712480041658,1999.99999979,0.000195,2]
[321731790,1712480044696,-2000.0,0.0002084,2]
[321731791,1712480045556,-2000.0,0.0002084,2]
[321731792,1712480046169,-1270.86531308,0.0002084,2]
[321731793,1712480046192,-150.0,0.0002084,2]
[321731794,1712480046213,-579.13468692,0.00020841,2]
[321731795,1712480064982,-407.0,0.00020841,2]
[321731796,1712480075115,-1095.989866,0.0002084,2]
[321731797,1712480075145,-904.010134,0.00020841,2]
[321731798,1712480075645,-2000.0,0.00020841,2]
[321731799,1712480077313,-2000.0,0.00020841,2]
[321731800,1712480077392,-2000.0,0.00020841,2]
[321731801,1712480077654,-2000.0,0.00020841,2]
[321731802,1712480085147,-2000.0,0.00020841,2]
[321731803,1712480085580,-2000.0,0.00020841,2]
[321731804,1712480086072,-2000.0,0.00020841,2]
[321731805,1712480086576,-2000.0,0.00020841,2]
[321731806,1712480087088,-2000.0,0.00020841,2]
[321731807,1712480106796,-2000.0,0.0002084,2]
[321731808,1712480107233,-2000.0,0.0002084,2]
[321731809,1712480107968,-2000.0,0.0002084,2]
[321731810,1712480108434,-2000.0,0.0002084,2]
[321731811,1712480109714,-2000.0,0.0002084,2]
[321731812,1712480110247,-2000.0,0.0002084,2]
[321731813,1712480118650,-33.24895769,0.0002084,2]
[321731814,1712480118671,-1966.75104231,0.00020841,2]
[321731815,1712480119061,-2000.0,0.00020841,2]
[321731816,1712480119548,-2000.0,0.00020841,2]
[321731817,1712480127250,-179.5067146,0.0002084,2]
[321731818,1712480127272,-1820.4932854,0.00020841,2]
[321731819,1712480127692,-1122.30267422,0.00020841,2]
[321731820,1712480133668,877.69732578,0.0002,2]
[321731821,1712480133690,1380.65391105,0.0002,2]
[321731822,1712480151904,619.34608895,0.0002,2]
[321731824,1712480344387,161.06,0.00018917,2]
[321731825,1712480847629,153.0,0.00018375,2]
[321731830,1712480961570,3794.90644626,0.00018375,2]
[321731849,1712481031867,-1002.71094598,0.00019782,2]
[321731850,1712481031880,-670.45812629,0.00019782,2]
[321731877,1712481032442,-286.18192272,0.00019782,2]
[321731880,1712481032454,-1114.93496234,0.00019782,2]
[321731882,1712481032464,-653.99842488,0.00019783,2]
[321731885,1712481032484,-387.51100691,0.00019783,2]
[321731888,1712481032509,-434.33736611,0.00019783,2]
[321731917,1712481037805,-492.95030719,0.00019783,2]
[321731918,1712481037816,-2401.86457884,0.00019783,2]
[321731919,1712481037909,-4900.5267409,0.00019783,2]
[321731920,1712481038019,-1580.41392657,0.00019783,2]
[321731921,1712481038029,-2173.81938731,0.00019783,2]
[321731922,1712481038038,-4716.5472582,0.00019784,2]
[321731923,1712481038048,-4549.2899,0.00019786,2]
[321731924,1712481038058,-150.0,0.00019878,2]
[321731925,1712481038067,-150.0,0.00019878,2]
[321731926,1712481038076,-1380.65391105,0.0002,2]
[321731927,1712481038086,-5333.24078196,0.0002,2]
[321731938,1712481039942,-4395.89511718,0.00019782,2]
[321731939,1712481039951,-2409.54724002,0.0002,2]
[321731940,1712481040220,-6057.39351819,0.0002,2]
[321731941,1712481040231,-8010.01,0.00020179,2]
[321731942,1712481040240,-180.55930584,0.00020299,2]
[321731943,1712481040260,-28.08069416,0.00020299,2]
[321731944,1712481040269,-6757.77288082,0.00020304,2]
[321731945,1712481040280,-11781.73711918,0.00020304,2]
[321731946,1712481040290,-800.0,0.00020351,2]
[321731947,1712481040299,-4344.34,0.00020351,2]
[321731948,1712481040308,-175.05,0.00020408,2]
[321731949,1712481040318,-7820.49,0.0002052,2]
[321731950,1712481040327,-1859.86,0.00020565,2]
[321731951,1712481040337,-153.0,0.00020638,2]
[321731952,1712481040346,-2717.85,0.00020657,2]
[321731953,1712481040355,-983.31558598,0.000209,2]
[321731954,1712481040365,-4457.15318895,0.000209,2]
[321731956,1712481040374,-1307.33369748,0.000209,2]
[321731958,1712481040384,-622.68487453,0.000209,2]
[321731960,1712481040394,-6000.0,0.00020997,2]
[321731962,1712481040404,-500.0,0.00020997,2]
[321731964,1712481040413,-3878.54193586,0.00020997,2]
[321731966,1712481040422,-5529.51782485,0.00020997,2]
[321731968,1712481040432,-4318.70766298,0.00020997,2]
[321731970,1712481040441,-771.84071511,0.00020998,2]
[321731972,1712481040450,-307.72889449,0.00020998,2]
[321731974,1712481040460,-382.04422925,0.00020998,2]
[321731976,1712481040469,-500.0,0.00020998,2]
[321731977,1712481040478,-594.64201395,0.00020998,2]
[321731978,1712481040487,-500.0,0.00020998,2]
[321731979,1712481040496,-165.01980852,0.00020998,2]
[321731980,1712481040505,-164.36576479,0.00020999,2]
[321731981,1712481040514,-284533.28406056,0.00020999,2]
[321731982,1712481040551,-3964.79923842,0.00020999,2]
[321731999,1712481042914,-12884.21189877,0.00020999,2]
[321732000,1712481043022,-2595.03426806,0.00020999,2]
[321732001,1712481043035,-2145.30486255,0.00020999,2]
[321732002,1712481043134,-144044.86494635,0.00020999,2]
[321732015,1712481045821,-1324.8,0.00020999,2]
[321732022,1712481045875,-1228.2764569,0.00020999,2]
[321732033,1712481045984,-833.55454385,0.00020999,2]
[321732034,1712481046000,-47669.37042442,0.00020999,2]
[321732044,1712481046094,-6561.23247747,0.00020999,2]
[321732048,1712481046154,-33446.59577715,0.00020999,2]
[321732051,1712481337247,161.62,0.00018204,2]
[321732052,1712481490252,3681.6563707,0.00018204,2]
[321732053,1712481604457,142435.72588758,0.0003,30]
[321732055,1712481656899,10392.93966207,0.00018204,2]
[321732056,1712481726176,24624.97877041,0.00018204,2]
[321732057,1712481746174,24624.97877041,0.00018204,2]
[321732058,1712481766168,24594.69222268,0.00018204,2]
[321732059,1712481824575,153.53,0.00018192,2]
[321732066,1712482232023,-325.42581135,0.0001994,2]
[321732067,1712482232036,-212.34064976,0.0001994,2]
[321732068,1712482232045,-603.04871953,0.00019941,2]
[321732069,1712482232136,-1365.74838556,0.00019941,2]
[321732070,1712482232145,-217.49949462,0.00019942,2]
[321732071,1712482232155,-3299.84091267,0.00019942,2]
[321732072,1712482232167,-5582.96433364,0.00019942,2]
[321732073,1712482232176,-2173.81938731,0.00019943,2]
[321732074,1712482232185,-4500.0,0.0001995,2]
[321732075,1712482232194,-23900.0,0.00019956,2]
[321732076,1712482232203,-208.64,0.00019956,2]
[321732077,1712482232213,-2182.48,0.00020061,2]
[321732078,1712482232222,-640.0,0.000201,2]
[321732079,1712482232232,-3026.27,0.00020211,2]
[321732080,1712482232242,-360.0,0.00020224,2]
[321732081,1712482232251,-2325.0,0.00020271,2]
[321732082,1712482232261,-153.53,0.00020456,2]
[321732083,1712482232271,-150.99,0.00020456,2]
[321732084,1712482232280,-499.99,0.00020456,2]
[321732085,1712482232289,-18557.0193136,0.00020677,2]
[321732086,1712482232299,-1484.28290941,0.00020687,2]
[321732087,1712482232309,-117.56801088,0.00020687,2]
[321732088,1712482232354,-1153.90392012,0.00020687,2]
[321732089,1712482232366,-581.42497301,0.00020687,2]
[321732090,1712482238137,-4716.5472582,0.0001994,2]
[321732091,1712482238147,-1314.34219928,0.00020687,2]
[321732092,1712482238156,-880.48547485,0.00020687,2]
[321732093,1712482238165,-322.5918707,0.00020687,2]
[321732094,1712482238175,-327.31,0.00020687,2]
[321732095,1712482238184,-2854.87478371,0.00020687,2]
[321732096,1712482238197,-1153.71021629,0.00020687,2]
[321732097,1712482238207,-2410.26626518,0.00020787,2]
[321732098,1712482238290,-351.83945624,0.00020787,2]
[321732109,1712482240063,-7067.88792249,0.00020787,2]
[321732110,1712482240278,-280.62050714,0.00020787,2]
[321732111,1712482240334,-276.22137083,0.00020787,2]
[321732115,1712482243094,-2641.27472629,0.00020786,2]
[321732116,1712482243364,-16201.26175014,0.00020786,2]
[321732117,1712482243395,-9411.0223646,0.00020786,2]
[321732146,1712482246331,-135449.35877937,0.00020786,2]
[321732147,1712482246342,-1272.5365087,0.00020786,2]
[321732148,1712482246353,-114522.87674399,0.00020787,2]
[321732283,1712482308738,153.53,0.00018521,2]
[321732284,1712482897654,7482.64740264,0.00018521,2]
[321732285,1712482901035,20123.74639395,0.00018521,2]
[321732286,1712482903414,42494.85911985,0.00018521,2]
[321732287,1712482915671,7470.47823128,0.00018521,2]
[321732288,1712482916971,20089.52125853,0.00018521,2]
[321732289,1712482921394,32348.3236247,0.00018521,2]
[321732290,1712482961828,153.53,0.00017934,2]
[321732291,1712483251389,-488.0,0.00019752,2]
[321732292,1712483251410,-324.95202219,0.00019777,2]
[321732293,1712483251432,-1500.0,0.00019777,2]
[321732294,1712483251451,-261.60041953,0.00019778,2]
[321732295,1712483251474,-375.85470948,0.00019779,2]
[321732296,1712483251495,-155.0,0.00019779,2]
[321732297,1712483251516,-72.26169095,0.0001978,2]
[321732298,1712483346331,-1241.19748567,0.00019776,2]
[321732299,1712483346353,-261.60041953,0.00019777,2]
[321732300,1712483346374,-2173.81938731,0.00019777,2]
[321732301,1712483346395,-150.0,0.00019778,2]
[321732302,1712483346415,-150.0,0.00019778,2]
[321732303,1712483346436,-4716.5472582,0.00019779,2]
[321732304,1712483346457,-2345.36657873,0.00019799,2]
[321732307,1712483356932,157.51584621,0.00019676,2]
[321732308,1712483374109,-2052.95817881,0.00019776,2]
[321732309,1712483402950,1000.0,0.00019,2]
[321732310,1712483411327,1000.0,0.000195,2]
[321732346,1712483432320,-1610.88,0.00019885,2]
[321732348,1712483432330,-3074.28595733,0.00019955,2]
[321732350,1712483432339,-512.0,0.00019956,2]
[321732352,1712483432348,-1000.0,0.0002,2]
[321732354,1712483432357,-202.60134531,0.0002,2]
[321732357,1712483432377,-797.39865469,0.0002,2]
[321732359,1712483432386,-726.07946639,0.00020019,2]
[321732361,1712483432462,-335.60735649,0.00020019,2]
[321732362,1712483432475,-417.88434982,0.00020019,2]
[321732363,1712483432545,-334.50747262,0.00020019,2]
[321732364,1712483432556,-473.60372956,0.00020019,2]
[321732365,1712483432568,-564.45762512,0.00020019,2]
[321732366,1712483432577,-2043.36,0.00020163,2]
[321732367,1712483432587,-499.99,0.00020163,2]
[321732368,1712483432596,-150.0,0.00020334,2]
[321732369,1712483432605,-90.44237488,0.000205,2]
[321732370,1712483432764,-761.75219466,0.000205,2]
[321732382,1712483438444,1000.0,0.000194,2]
[321732384,1712483438771,-147.80543046,0.000205,2]
[321732385,1712483438782,-672.19456954,0.00020524,2]
[321732386,1712483438880,-513.50999999,0.00020524,2]
[321732387,1712483438940,-542.40190173,0.00020524,2]
[321732388,1712483438953,-153.53,0.00020622,2]
[321732389,1712483438964,-373.57099629,0.00020686,2]
[321732390,1712483438977,-779.62130966,0.00020686,2]
[321732391,1712483439051,-815.0,0.00020686,2]
[321732424,1712483440294,-11688.02478047,0.00020686,2]
[321732426,1712483440304,-500.0,0.00020687,2]
[321732428,1712483440313,-11458.8166,0.00020687,2]
[321732430,1712483440323,-2247.7436,0.000207,2]
[321732432,1712483440334,-1000.0,0.000207,2]
[321732434,1712483440344,-2500.0,0.000207,2]
[321732436,1712483440354,-1366.8061659,0.000207,2]
[321732438,1712483440363,-224.33019156,0.00020783,2]
[321732440,1712483440372,-97.91405429,0.00020783,2]
[321732449,1712483440447,-2008.90407879,0.00020783,2]
[321732451,1712483440457,-365.23644351,0.00020783,2]
[321732453,1712483440466,-1132.33754001,0.00020783,2]
[321732455,1712483440476,-183.11539804,0.00020783,2]
[321732457,1712483440486,-261.51890226,0.00020784,2]
[321732459,1712483440495,-374.23095739,0.00020784,2]
[321732461,1712483440505,-1841.82658258,0.00020785,2]
[321732463,1712483440515,-266.67015602,0.00020785,2]
[321732465,1712483440524,-208.3599414,0.00020785,2]
[321732468,1712483440543,-191.6400586,0.00020785,2]
[321732470,1712483440553,-352.69399857,0.00020785,2]
[321732472,1712483440562,-261.79628541,0.00020785,2]
[321732473,1712483440571,-500.0,0.00020785,2]
[321732474,1712483440582,-9527.47017686,0.00020785,2]
[321732476,1712483440608,-2069.99038657,0.00020785,2]
[321732488,1712483440715,-3438.89945203,0.00020785,2]
[321732503,1712483443416,-1234.05918977,0.00020785,2]
[321732504,1712483443474,-7605.45382466,0.00020785,2]
[321732505,1712483443492,-869.28632136,0.00020785,2]
[321732506,1712483443510,-157.86850402,0.00020785,2]
[321732507,1712483443524,-201.93302503,0.00020785,2]
[321732508,1712483443537,-408.6954813,0.00020785,2]
[321732509,1712483443550,-255.05137172,0.00020785,2]
[321732510,1712483443565,-155.54134018,0.00020785,2]
[321732511,1712483443578,-355.28537371,0.00020785,2]
[321732512,1712483443591,-155.50302596,0.00020785,2]
[321732513,1712483443604,-219.93157435,0.00020786,2]
[321732514,1712483443616,-3529.32909372,0.00020786,2]
[321732515,1712483443629,-602.04501,0.00020787,2]
[321732516,1712483443641,-200.0,0.00020787,2]
[321732517,1712483443652,-1440.5879,0.00020799,2]
[321732518,1712483443665,-45309.3994,0.000208,2]
[321732519,1712483443676,-173.1344,0.000208,2]
[321732520,1712483443688,-445.0028,0.000208,2]
[321732521,1712483443700,-46731.58157731,0.000208,2]
[321732522,1712483443721,-9516.34373212,0.000208,2]
[321732523,1712483443736,-3123.51511616,0.000208,2]
[321732524,1712483443750,-15982.40558104,0.000208,2]
[321732525,1712483443785,-16603.518774,0.000208,2]
[321732527,1712483446424,-103643.28534,0.000208,2]
[321732528,1712483446481,-8993.05347937,0.000208,2]
[321732529,1712483446493,-14535.4788528,0.00020898,2]
[321732530,1712483446506,-4787.8279,0.00020899,2]
[321732531,1712483446519,-19685.5035,0.00020899,2]
[321732532,1712483446532,-24561.6289,0.00020899,2]
[321732533,1712483446543,-192.291,0.00020899,2]
[321732534,1712483446558,-1954.59,0.00020899,2]
[321732535,1712483446570,-29878.783,0.00020899,2]
[321732536,1712483446582,-4085.72375651,0.000209,2]
[321732537,1712483446594,-365.8825,0.000209,2]
[321732538,1712483446607,-507.93,0.000209,2]
[321732539,1712483446619,-549.5779,0.000209,2]
[321732540,1712483446631,-2849.8934,0.000209,2]
[321732541,1712483446643,-151.69349275,0.000209,2]
[321732542,1712483446656,-157.5158462,0.000209,2]
[321732543,1712483446669,-4559.33586481,0.00020978,2]
[321732544,1712483446681,-250.4340106,0.00020997,2]
[321732545,1712483446694,-370.60052843,0.00020997,2]
[321732546,1712483446707,-219.83716868,0.00020997,2]
[321732547,1712483446720,-2347.75099096,0.00020997,2]
[321732548,1712483446734,-4380.27120114,0.00020998,2]
[321732549,1712483446746,-676764.77515663,0.00020999,2]
[321732550,1712483446756,-121845.59862766,0.00021,2]
[321732551,1712483446772,-787.30992977,0.00021,2]
[321732552,1712483446785,-6679.0,0.00021,2]
[321732553,1712483446805,-547399.92641269,0.00021,2]